Cogmind - Beta 9.2 @@@ ROGUE MODE // 2019.12.13 @ 16:27:09 Player: RNGesus Result: Destroyed by G-34 Mercenary with Small Laser Performance ------------- Evolutions (0) 0 Regions Visited (2) 400 Robots Destroyed (29) 145 Value Destroyed (612) 612 Prototype IDs (0) 0 Alien Tech Used (0) 0 Bonus (0) 0 TOTAL SCORE: 1157 Bonus ------- None Cogmind --------- Core Integrity 0/250 Matter 296/300 Energy 142/160 System Corruption 0% Temperature Cool (6) Movement Rolling (100) Ox1 Location -10/Mines Parts ------- > --- POWER (1) -------- Light Nuclear Core > --- PROPULSION (2) --- Armored Wheel Armored Wheel > --- UTILITY (2) ------ Large Storage Unit Large Storage Unit > --- WEAPON (2) ------- EM Pulse Gun Improved Light Cannon > --- INVENTORY (16) --- Light Nuclear Core Light Angular Momentum Engine Light Treads Advanced Treads Armored Wheel Improved Heat Sink Medium Storage Unit Improved Targeting Computer Improved Targeting Computer Hacking Suite Improved Trap Extractor Beamcaster Improved Light Cannon Improved Light Cannon Scythe Peak State ------------ > --- POWER ------------ Light Nuclear Core > --- PROPULSION ------- Armored Wheel Armored Wheel > --- UTILITY ---------- Large Storage Unit Large Storage Unit > --- WEAPON ----------- EM Pulse Gun Improved Light Cannon > --- INVENTORY -------- Light Nuclear Core Light Angular Momentum Engine Light Treads Advanced Treads Armored Wheel Improved Heat Sink Medium Storage Unit Improved Targeting Computer Improved Targeting Computer Hacking Suite Improved Trap Extractor Beamcaster Improved Light Cannon Improved Light Cannon Scythe [Rating: 16] Favorites ----------- Power Ion Engine Engine Ion Engine Power Core Light Nuclear Core Propulsion Light Treads Treads Light Treads Leg Aluminum Leg Wheel Armored Wheel Utility Large Storage Unit Storage Large Storage Unit Weapon EM Pulse Gun Energy Gun EM Pulse Gun Ballistic Gun Assault Rifle Ballistic Cannon Improved Light Cannon Build | -11 -10 -10 ------- Run | Scr Mat Min Slots Evolved . | . . . Power . | . . . Propulsion . | . . . Utility . | . . . Weapon . | . . . Parts Attached 19 | 5 10 4 Power 2 | . 1 1 Engine 1 | . 1 . Core 1 | . . 1 Reactor . | . . . Propulsion 8 | 2 4 2 Treads 4 | . 4 . Leg 2 | 2 . . Wheel 2 | . . 2 Hover . | . . . Flight . | . . . Utility 3 | 1 2 . Device . | . . . Storage 3 | 1 2 . Processor . | . . . Hackware . | . . . Protection . | . . . Artifact . | . . . Weapon 6 | 2 3 1 Energy Gun 4 | 2 2 . Energy Cannon . | . . . Ballistic Gun 1 | . 1 . Ballistic Cannon 1 | . . 1 Launcher . | . . . Special Weapon . | . . . Impact Weapon . | . . . Slashing Weapon . | . . . Piercing Weapon . | . . . Special Melee Weapon . | . . . Unidentified Prototypes . | . . . Parts Lost 4 | . 2 2 Power 1 | . . 1 Propulsion . | . . . Utility . | . . . Weapon 3 | . 2 1 Highest Loss Streak 1 | . 1 1 Average Slot Usage (%) 96 | . 96 96 Engine 9 | . 11 . Core 2 | . . 9 Treads 17 | . 21 2 Leg 4 | . 6 . Wheel 5 | . . 25 Storage 27 | . 27 28 Energy Gun 15 | . 16 14 Ballistic Gun 9 | . 10 4 Ballistic Cannon 2 | . . 9 Naked Turns . | . . . Heaviest Build 43 | 8 41 43 Greatest Support 40 | 20 40 40 Greatest Overweight (x) 2 | 2 2 1 Average Overweight (x) . | . . . Largest Inventory Capacity 16 | 6 16 16 Average Capacity 15 | 5 15 16 Most Carried 16 | 5 16 16 Average Carried 9 | 2 8 15 Final Capacity 16 | 6 16 16 Final Carried 16 | 5 16 15 Class Distribution -------------------- 100% | Mutant Dominant Class ---------------- Mutant | -10/Materials Mutant | -10/Mines Resources | -11 -10 -10 ----------- Run | Scr Mat Min Matter Collected 594 | 212 281 101 Remotely . | . . . Salvage Created 1051 | . 882 169 Parts 63 | . 53 10 Haulers Intercepted 2 | . 2 . Recyclers Shooed 1 | . 1 . Parts Field Recycled . | . . . Retrieved Matter . | . . . Parts Self-Destructed . | . . . Prevented . | . . . Kills | -11 -10 -10 ------- Run | Scr Mat Min Combat Hostiles Destroyed 20 | . 16 4 Guns 17 | . 14 3 Cannons 1 | . . 1 AOE 2 | . 2 . Classes Destroyed 6 | . 6 . Tunneler 2 | . 2 . Hauler 2 | . 2 . Recycler 3 | . 2 1 Operator 2 | . 2 . Swarmer 8 | . 6 2 Grunt 12 | . 10 2 Best Kill Streak 4 | . 4 4 Combat Bots Only 4 | . 4 3 Max Kills in Single Turn 2 | . 2 1 Gunslinging 1 | . 1 . Exploded 1 | . 1 . Melee . | . . . Uniques/NPCs Destroyed . | . . . Combat | -11 -10 -10 -------- Run | Scr Mat Min Damage Taken 1157 | . 849 308 Core 251 | . 200 51 Absorbed by Shields . | . . . Core Remaining (%) 100 | 100 . . Volleys Fired 96 | . 77 19 Largest 2 | . 2 2 Hottest 100 | . 100 79 Shots Fired 175 | . 144 31 Gun 158 | . 144 14 Cannon 17 | . . 17 Launcher . | . . . Special . | . . . Kinetic 71 | . 53 18 Thermal 54 | . 54 . Explosive . | . . . Electromagnetic 50 | . 37 13 Robot Hit Streak 12 | . 12 11 Robot Miss Streak 5 | . 5 3 Penetration Max . | . . . Secondary Targets 6 | . 6 . Max Gunslinging Chain 1 | . 1 . Shots Hit Robots 115 | . 97 18 Core Hits 44 | . 37 7 Critical Hits . | . . . Critical Kills . | . . . Critical Parts Destroyed . | . . . Melee Attacks . | . . . Impact . | . . . Slashing . | . . . Piercing . | . . . Sneak Attacks . | . . . Combat Hostiles . | . . . Follow-up Attacks . | . . . Damage Inflicted 1671 | . 1347 324 Guns 1368 | . 1238 130 Cannons 193 | . . 193 Explosions 109 | . 109 . Melee . | . . . Ramming 1 | . . 1 Kinetic 618 | . 425 193 Thermal 535 | . 535 . Explosive . | . . . Electromagnetic 517 | . 387 130 Impact . | . . . Slashing . | . . . Piercing . | . . . Highest Corruption . | . . . Average Corruption . | . . . Corruption Purged . | . . . Overload Shots . | . . . Overflow Damage . | . . . Projectiles . | . . . Explosions . | . . . Melee . | . . . Knockbacks 5 | . . 5 Impact . | . . . Kinetic 5 | . . 5 Secondary . | . . . Self-Inflicted Damage . | . . . Shots . | . . . Rammed 1 | . . 1 Targets Rammed 1 | . . 1 Kicked . | . . . Crushed . | . . . Highest Temperature 255 | . 144 255 Average Temperature 59 | . 36 131 Received Heat Transfer 471 | . 336 135 Effects 2 | . . 2 Interference 2 | . . 2 Siege Activations . | . . . Robots Corrupted . | . . . Combat Hostiles . | . . . Parts Fried . | . . . Impact Corruptions . | . . . Robots Melted . | . . . Combat Hostiles . | . . . Parts Melted 2 | . 2 . Heat Transferred 1408 | . 1408 . Parts Sabotaged . | . . . Parts Stolen . | . . . Parts Stripped . | . . . Power Chain Reactions 2 | . 2 . Missiles Intercepted . | . . . Alert | -11 -10 -10 ------- Run | Scr Mat Min Peak Influence 269 | . 269 101 Average Influence 112 | . 130 66 Maximum Alert Level 1 | . 1 . Low Security (%) 81 | 100 75 100 Level 1 18 | . 24 . Level 2 . | . . . Level 3 . | . . . Level 4 . | . . . Level 5 . | . . . High Security . | . . . Max Security . | . . . Squads Dispatched 4 | . 4 . Investigation 1 | . 1 . Extermination . | . . . Reinforcement 3 | . 3 . Assault . | . . . Garrison . | . . . Intercept . | . . . Construction Impeded . | . . . Haulers Reinforced . | . . . Stealth | -11 -10 -10 --------- Run | Scr Mat Min Distress Signals 1 | . 1 . Communications Jammed . | . . . Distress Signals . | . . . Times Spotted 43 | . 37 6 Peak Tracking Total 6 | . 6 3 Tactical Retreats 1 | . . 1 Traps | -11 -10 -10 ------- Run | Scr Mat Min Traps Triggered 3 | . 2 1 Indirectly . | . . . Trap Hack Attempts . | . . . Triggered . | . . . Disarmed . | . . . Reprogrammed . | . . . Reused . | . . . Traps Extracted . | . . . Installed . | . . . Triggered . | . . . Machines | -11 -10 -10 ---------- Run | Scr Mat Min Machines Disabled 3 | . 3 . Max in Single Turn 1 | . 1 . Machines Sabotaged . | . . . Garrisons Compromised . | . . . Overloaded Fab Kills . | . . . Fab Network Shutdowns . | . . . Hacking | -11 -10 -10 --------- Run | Scr Mat Min Machines Accessed 5 | . 4 1 Terminals 3 | . 3 . Fabricators . | . . . Repair Stations . | . . . Recycling Units 1 | . 1 . Scanalyzers . | . . . Garrison Access . | . . . Total Hacks 11 | . 10 1 Successful 2 | . 1 1 Failed 9 | . 9 . Catastrophic . | . . . Database Lockouts . | . . . Manual 11 | . 11 . Terminals 8 | . 8 . Fabricators . | . . . Repair Stations . | . . . Recycling Units 2 | . 2 . Scanalyzers . | . . . Garrison Access . | . . . Terminal Hacks 1 | . . 1 Open Door 1 | . . 1 Fabricator Hacks . | . . . Repair Station Hacks . | . . . Recycling Unit Hacks . | . . . Scanalyzer . | . . . Garrison Access Hacks . | . . . Unauthorized Hacks 11 | . 11 . Terminals 1 | . 1 . Operators 1 | . 1 . Fabricators . | . . . Repair Stations . | . . . Recycling Units . | . . . Scanalyzers . | . . . Garrison Access . | . . . Data Cores Recovered . | . . . Used . | . . . Hacking Detections 3 | . 3 . Full Trace Events 1 | . 1 . Feedback Events . | . . . Feedback Blocked . | . . . Robot Schematics Acquired . | . . . Robots Built . | . . . Matter . | . . . Time . | . . . Total Robot Build Rating . | . . . Part Schematics Acquired . | . . . Parts Built . | . . . Matter . | . . . Time . | . . . Total Part Build Rating . | . . . Parts Repaired . | . . . Time . | . . . Parts Recycled . | . . . Recycled Matter . | . . . Retrieved Matter . | . . . Retrieved Components . | . . . Parts Scanalyzed . | . . . Part Schematics Acquired . | . . . Parts Damaged . | . . . Bothacking | -11 -10 -10 ------------ Run | Scr Mat Min Used RIF Installer . | . . . Robots Hacked . | . . . Non-combat . | . . . Combat . | . . . Robot Hacks Applied . | . . . Relay Couplers Released . | . . . Robots Rewired . | . . . Allies Hacked . | . . . Hacks Repelled . | . . . Allies | -11 -10 -10 -------- Run | Scr Mat Min Total Allies . | . . . Largest Group . | . . . Highest-Rated Group . | . . . Highest-Rated Ally . | . . . Total Orders . | . . . Ally Attacks . | . . . Total Damage . | . . . Kills . | . . . Allies Corrupted . | . . . Allies Melted . | . . . Intel | -11 -10 -10 ------- Run | Scr Mat Min Robot Analysis Total . | . . . Derelict Logs Recovered . | . . . Drone Launches . | . . . Drone Recoveries . | . . . Exploration | -11 -10 -10 ------------- Run | Scr Mat Min Turns Passed 1586 | 57 1205 324 Spaces Moved 826 | 39 551 236 Core 11 | 11 . . Treads 463 | . 448 15 Legs 131 | 28 103 . Wheels 221 | . . 221 Hover . | . . . Flight . | . . . Fastest Speed 50 | 50 120 100 Average Speed 150 | 115 172 104 Slowest Speed 200 | 150 200 180 Overloaded Moves . | . . . Propulsion Burnouts . | . . . Robots Hopped . | . . . Cave-ins Triggered . | . . . Exploration Rate (%) 43 | 3 76 50 Regions Visited 2 Branch Regions 1 Pre-discovered Areas . | . . . Known Exits Taken . | . . . Unknown Exits Taken 2 | 1 1 . Scrap Searched 1 | . . 1 Spaces Dug . | . . . Terrain Destroyed 1 | . . 1 Melee . | . . . Projectile 1 | . . 1 AOE . | . . . Actions | -11 -10 -10 --------- Run | Scr Mat Min Total 993 | 48 659 286 Wait 17 | . 2 15 Move 824 | 38 550 236 Hop . | . . . Pick Up 27 | 5 16 6 Fast Attach 8 | 5 3 . Attach 7 | . 5 2 Detach 1 | . 1 . Swap 4 | . 2 2 Drop 8 | . 3 5 Fire 96 | . 77 19 Melee . | . . . Ram 1 | . . 1 Kick . | . . . Crush . | . . . Escape Stasis . | . . . Rewire . | . . . Trap . | . . . Miscellaneous . | . . . Route ------- -11/Scrapyard -10/Materials (discovered 2 exits: [*Mat] / *Min) -10/Mines (discovered 1 exit: [*Mat]) History --------- Turn | Location | Event 20 | -11/Scrapyard | Discovered new exit (range 16) 58 | -11/Scrapyard | Entered Materials 181 | -10/Materials | Discovered new exit (range 10) 305 | -10/Materials | Build established: Mutant 495 | -10/Materials | Core integrity fell below 50% 906 | -10/Materials | Discovered new exit (range 10) 1263 | -10/Materials | Entered Mines 1273 | -10/Mines | Met a Derelict who couldn't figure out how to use a Trap Extractor 1377 | -10/Mines | Core integrity fell below 20% 1575 | -10/Mines | Discovered new exit (range 10) 1587 | -10/Mines | Destroyed by G-34 Mercenary with Small Laser Last Messages --------------- 01381_ R-06 Scavenger destroyed. 01384_ G-47 Trooper destroyed. 01387_ G-34 Mercenary knocked back. 01392_ Overheating: System interference. 01392_ EM Pulse Gun temporarily disabled. 01392_ Imp. Light Cannon temporarily disabled. 01394_ Slammed into R-06 Scavenger. 01408_ G-34 Mercenary knocked back. 01414_ Destroyed Sml. Laser. 01414_ G-34 Mercenary knocked back. 01417_ G-34 Mercenary destroyed. 01421_ Acquired 73 matter. 01423_ Acquired 7 matter. 01427_ Acquired Lgt. Nuclear Core. 01434_ K-01 Serf collects debris. 01489_ R-06 Scavenger collects Imp. Heat Sink. 01492_ K-01 Serf collects debris. 01493_ R-06 Scavenger collects Aluminum Leg. 01497_ K-01 Serf collects debris. 01575_ EXIT=FOUND Map ----- +----------------------------------------------------+ | | | | | | | | | | | ????????????????????????????????????????? | | ????????????????????????????????????????? | | ????????????????????????????????????????? | | ????????????????????????????????????????? | | ????????????????????????????????????????? | | ????????????????????????????????????????? | | ????????????????????????????????????????? | | ????????????????????????????????????????? | | ????????????????????????????????????????? | | ????????????????????????????????????????? | | ????????????????????????????????????????? | | ????????????????????????????????????????? | | ????????????????????????????????????????? | | ???????###?????????####?????????????????? | | ??????## ##??????# ##????????????????? | | ?????## #?????# #????????????????? | | ?????# #???## #????????????????? | | ??????# ##### < #?????????????????# | | ?????## ## #??### #???????###### | | ??#### ## #??????## ## | | ??# @ $ #????????# | | ??# g !! #????????# | | ???# ##### #### !! ##???????# | | ??????????# ###????g ! # ????????# | | ??????????# #??????? !! ???????# ## | | ??????????# #????????? ##??????# ### | | ??????????# ####??????? ##???????# #?## | | ??????????# #???????? #????????# #??# | | ??????????##### #???????? #??####### #??? | | ??????????????# #???????? #??#| #??? | | ??????????????# #?#####?? #??#!#######??? | | ??????????????# ### ### #??#%#????????? | | ??????????????# #??#]#????????? | | ??????????????#### # ##??#!#????????? | | ?????????????????# ## #???# #????????? | | ????????????????## ### #???# ##### ###? | | ???????????????## ##?# #???# | | ??????????????## ##??# #???# #########? | | ?????????????## ##???# ##### ##???????? | | ?????????????# ##????# %%##???????? | | ?????????????# #????## ########???????? | | ?????????????# ##???## ###??#####?????? | | ????????????## ##????#*% #### ##????? | | ????????????# #????## ## ##???? | | ????????????# #???## ##### | +----------------------------------------------------+ Best States ------------- Heat Dissipation 25 Energy Generation 14 Energy Capacity 250 Matter Stores 300 Matter Capacity 300 Sight Range 16 Terrain Scan Density 10 Evasion (%) 40 Recoil Reduction 2 Item Schematics ----------------- None Robot Schematics ------------------ None Fabricated ------------ Nothing Alien Tech Used ----------------- None Achievements -------------- None Challenges ------------ None Game ------ Seed IonWeldingSpear Manual? 0 Play Time 00:10:49 Cumulative 213.7 hours Start 2019.12.12 @ 23:09:37 End 2019.12.13 @ 16:27:09 Sessions 2 Manual Loads 0 Difficulty Rogue Special Mode None Game No. 340 Rogue 340 Adventurer 0 Explorer 0 Win Type - Total 4 Types 2/0/1/1/0/0/0 Lore% 76 Gallery% 75 Achievement% 57 Wizard Run 0 Options --------- ASCII 0 Keyboard 1 Movement Numpad Keybinds 0 Fullscreen 2 Font 18/X11Bold Map View 76x50 Tactical HUD 1 Map Filters NONE Filters NONE Steam 1 RUN: 1776ae69-ba07-49b5-b928-13d97af73313